Workbook

Sheet Sheet1
I2: Units | J2: GSF
B3: 2 Derne Street | I3: 6 | J3: 3750
B5: Rental Revenue | D5: In-Place Rents | F5: Stabilized Proforma
B6: Units | C6: Bed | D6: Monthly | E6: Annual | F6: Monthly | G6: Annual | I6: EXP
B7: Unit 45-B (Commercial) | D7: 0 | E7: =D7*12 -> 0 | F7: 3000 | G7: =F7*12 -> 36000 | I7: VACANT
B8: Unit 1 | C8: 1 Bed / 1 Bath | D8: 2950 | E8: 35400 | F8: =D8 -> 2950 | G8: 35400 | I8: 2027-05-31
B9: Unit 2 | C9: 1 Bed / 1 Bath | D9: 2700 | E9: 32400 | F9: 3000 | G9: 36000 | I9: 2026-08-31 | J9: *Signed renewal for $3000 expiring 8/31/27
B10: Unit 3 | C10: 1 Bed / 1 Bath | D10: 2800 | E10: 33600 | F10: =D10 -> 2800 | G10: 33600 | I10: 2027-05-31
B11: Unit 4 | C11: 1 Bed / 1 Bath | D11: 2750 | E11: 33000 | F11: =D11 -> 2750 | G11: 33000 | I11: 2027-05-31
B12: Unit 5 | C12: 1 Bed / 1 Bath | D12: 2500 | E12: 30000 | F12: 2750 | G12: 33000 | I12: 2026-08-31
B13: Totals | D13: =SUM(D7:D12) -> 13700 | E13: =SUM(E7:E12) -> 164400 | F13: =SUM(F7:F12) -> 17250 | G13: =SUM(G7:G12) -> 207000
B15: Gross Income | E15: =E13 -> 164400 | G15: =G13 -> 207000
B16: Laundry Income | D16: =E16/12 -> 154.1666667 | E16: 1850 | G16: =E16*1.03 -> 1905.5
B17: Vacancy Factor (3%) | E17: 0 | G17: =-(G15*0.03) -> -6210
B18: Effective Gross Income | E18: =SUM(E15:E17) -> 166250 | G18: =SUM(G15:G17) -> 202695.5
B20: Expenses | F20: Proforma | G20: per unit
B21: General & Administrative | F21: 2500 | G21: =F21/I3 -> 416.6666667
B22: Insurance* | F22: 3734 | G22: =F22/I3 -> 622.3333333
B23: Utilities* | F23: 10045 | G23: =F23/$I$3 -> 1674.166667
B24: Maintenance | F24: 3000 | G24: =F24/$I$3 -> 500
B25: Management | E25: 0.04 | F25: =G18*E25 -> 8107.82 | G25: 1351.303333
B26: Taxes* | F26: 20800 | G26: 3466.666667
B27: Totals | F27: =SUM(F21:F26) -> 48186.82 | G27: =SUM(G22:G26) -> 7614.47
B29: Net Operating Income | F29: =G18-F27 -> 154508.68
B31: Notes
B32: *Expenses with an * are T-12 expense figures provided by ownership. The remainder are broker assumptions.
B33: *Projected rent increased 3% on near-term expirations.
B34: *Buyers are encouraged to do their own diligence.
